Cogmind - Beta 13 @@@ ROGUE MODE // 2024.04.07 @ 20:17:41 Player: Ender Result: Destroyed by X-72 Disruptor with Improved Arc Projector Performance ------------- Evolutions (4) 2000 Regions Visited (6) 1200 Robots Destroyed (43) 215 Value Destroyed (1036) 1036 Prototype IDs (2) 40 Alien Tech Used (0) 0 Bonus (500) 500 TOTAL SCORE: 4991 Bonus ------- Entered DSFs 500 Cogmind --------- Core Integrity 0/850 Matter 293/300 Energy 100/100 System Corruption 7% Temperature Cool (0) Movement Core (50) Location -6/DSF Parts ------- > --- POWER (3) -------- (None) > --- PROPULSION (4) --- (None) > --- UTILITY (4) ------ Enhanced Optical Array > --- WEAPON (4) ------- (None) > --- INVENTORY (5) ---- Micro Nuclear Core High-capacity Matter Pod (200) Shock Trap Peak State ------------ > --- POWER ------------ Improved Deuterium Engine Micro Nuclear Core > --- PROPULSION ------- Medium Treads Wheel Wheel > --- UTILITY ---------- Visual Processing Unit Terrain Scanner Advanced Targeting Computer Recoil Stabilizer > --- WEAPON ----------- Heavy Particle Gun Gatling Laser Improved Assault Rifle Gauss Rifle > --- INVENTORY -------- Micro Nuclear Core Compact Wheel Gravmag System High-capacity Matter Pod [Rating: 39] Favorites ----------- Power Light Ion Engine Engine Light Ion Engine Power Core Light Nuclear Core Propulsion Aluminum Leg Treads Medium Treads Leg Aluminum Leg Wheel Wheel Hover Unit Gravmag System Flight Unit Flight Unit Utility Visual Processing Unit Device Dynamic Insulation System Storage Large Matter Pod Processor Visual Processing Unit Weapon Improved Assault Rifle Energy Gun Shock Rifle Ballistic Gun Improved Assault Rifle Launcher Grenade Launcher Build | -11 -10 -9 -8 -7 -6 -6 ------- Run | Yrd Mat Mat Mat Fac Fac DSF Slots Evolved 8 | . . 2 2 2 2 . Power 2 | . . . 1 . 1 . Propulsion 2 | . . . 1 . 1 . Utility 2 | . . 2 . . . . Weapon 2 | . . . . 2 . . Parts Attached 79 | 7 15 10 27 18 . 2 Power 16 | 1 2 2 6 5 . . Engine 11 | 1 1 2 5 2 . . Core 5 | . 1 . 1 3 . . Reactor . | . . . . . . . Propulsion 24 | 2 3 . 13 6 . . Treads 1 | . . . . 1 . . Leg 10 | . 3 . 7 . . . Wheel 6 | 2 . . 1 3 . . Hover 2 | . . . . 2 . . Flight 5 | . . . 5 . . . Utility 14 | 2 3 2 3 3 . 1 Device 10 | 2 1 2 2 3 . . Storage 1 | . 1 . . . . . Processor 3 | . 1 . 1 . . 1 Hackware . | . . . . . . . Protection . | . . . . . . . Artifact . | . . . . . . . Weapon 25 | 2 7 6 5 4 . 1 Energy Gun 11 | 1 3 2 3 1 . 1 Energy Cannon . | . . . . . . . Ballistic Gun 12 | 1 3 3 2 3 . . Ballistic Cannon . | . . . . . . . Launcher 2 | . 1 1 . . . . Special Weapon . | . . . . . . . Impact Weapon . | . . . . . . . Slashing Weapon . | . . . . . . . Piercing Weapon . | . . . . . . . Special Melee Weapon . | . . . . . . . Unidentified Prototypes 1 | . 1 . . . . . Parts Lost 28 | . 2 7 9 1 . 9 Power 5 | . . 1 3 . . 1 Propulsion 8 | . 1 2 3 . . 2 Utility 6 | . . 1 1 1 . 3 Weapon 9 | . 1 3 2 . . 3 Highest Loss Streak 6 | . 2 6 5 1 . 4 To Critical Strikes . | . . . . . . . Average Slot Usage (%) 81 | . 98 70 86 80 60 31 Engine 7 | . 5 8 13 5 . . Core 4 | . 8 . 1 6 6 4 Leg 5 | . 2 15 7 7 . . Wheel 9 | . 25 . 1 4 . . Hover 1 | . . . . 3 13 4 Flight 3 | . . . 11 . . . Device 14 | . 15 17 17 13 13 3 Processor 13 | . 11 11 16 15 13 7 Energy Gun 6 | . 4 11 6 7 . 2 Ballistic Gun 13 | . 21 6 10 12 13 7 Naked Turns 11 | . . . . . . 11 Heaviest Build 33 | 9 12 13 22 33 15 18 Greatest Support 35 | 26 26 20 35 28 18 18 Greatest Overweight (x) 5 | . . 3 5 3 . 4 Average Overweight (x) . | . . . 1 . . . Largest Inventory Capacity 5 | 5 5 5 5 5 5 5 Average Capacity 5 | 5 5 5 5 5 5 5 Most Carried 5 | 1 5 5 5 5 3 5 Average Carried 3 | . 4 4 4 2 3 3 Final Capacity 5 | 5 5 5 5 5 5 5 Final Carried 5 | 1 5 2 4 3 3 3 Class Distribution -------------------- 53% | Mutant 38% | Scavenger-Mutant 5% | Scavenger-Gunner Dominant Class ---------------- Mutant | -10/Materials Mutant | -9/Materials Scavenger-Mutant | -8/Materials Scavenger-Mutant | -7/Factory Scavenger-Mutant | -6/Factory Mutant | -6/DSF Resources | -11 -10 -9 -8 -7 -6 -6 ----------- Run | Yrd Mat Mat Mat Fac Fac DSF Matter Collected 1600 | 276 281 204 597 203 . 39 Remotely 575 | 157 237 181 . . . . Salvage Created 1380 | 89 383 119 568 196 . 25 Parts 93 | 4 26 7 34 18 . 4 Haulers Intercepted . | . . . . . . . Recyclers Shooed 2 | . . 2 . . . . Parts Field Recycled . | . . . . . . . Retrieved Matter . | . . . . . . . Parts Self-Destructed . | . . . . . . . Prevented . | . . . . . . . Kills | -11 -10 -9 -8 -7 -6 -6 ------- Run | Yrd Mat Mat Mat Fac Fac DSF Combat Hostiles Destroyed 28 | . 8 5 12 2 . 1 Guns 22 | . 5 3 11 2 . 1 AOE 6 | . 3 2 1 . . . Classes Destroyed 11 | 2 3 2 2 1 . 1 Worker 5 | . . . 3 2 . . Builder 3 | . 2 . . 1 . . Tunneler 2 | 1 . . 1 . . . Recycler 3 | 1 . . 1 1 . . Watcher 2 | . 2 . . . . . Swarmer 8 | . . 2 6 . . . Cutter 1 | . . . . . . 1 Grunt 15 | . 8 2 5 . . . Sentry 2 | . . 1 . 1 . . Hunter 1 | . . . 1 . . . Programmer 1 | . . . . 1 . . Best Kill Streak 5 | 2 5 4 4 5 . 1 Combat Bots Only 4 | . 3 4 3 1 . 1 Max Kills in Single Turn 2 | 1 2 2 1 2 . 1 Gunslinging . | . . . . . . . Exploded 1 | . 1 1 1 . . . Melee . | . . . . . . . Uniques/NPCs Destroyed . | . . . . . . . Combat | -11 -10 -9 -8 -7 -6 -6 -------- Run | Yrd Mat Mat Mat Fac Fac DSF Hostile Shots Fired 350 | . 45 59 120 26 . 100 Missed 92 | . 7 13 33 8 . 31 Damage Taken 3744 | . 442 722 1165 202 . 1213 Core 1519 | . 161 228 250 22 . 858 Absorbed by Shields 76 | . . . . . . 76 Core Remaining (%) 65 | 100 35 43 54 96 . . Volleys Fired 125 | 2 36 16 60 10 . 1 Largest 4 | 2 2 2 2 4 . 3 Hottest 186 | 70 70 80 70 186 . 101 Shots Fired 222 | 4 56 23 103 33 . 3 Gun 212 | 4 52 17 103 33 . 3 Cannon . | . . . . . . . Launcher 10 | . 4 6 . . . . Special . | . . . . . . . Kinetic 122 | 2 45 6 49 18 . 2 Thermal 35 | 2 1 . 17 15 . . Explosive 10 | . 4 6 . . . . Electromagnetic 55 | . 6 11 37 . . 1 Robot Hit Streak 17 | 2 10 5 10 17 . 3 Robot Miss Streak 3 | 1 3 1 3 3 . . Penetration Max 1 | . . . . 1 . . Secondary Targets 2 | . . . 2 . . . Max Gunslinging Chain 1 | . . . 1 . . . Shots Hit Robots 139 | 2 42 12 61 20 . 2 Core Hits 70 | 2 19 12 26 10 . 1 Critical Kills 2 | 1 . . 1 . . . Critical Parts Destroyed . | . . . . . . . Critical Strikes 4 | 1 . . 3 . . . Burn 1 | . . . 1 . . . Destroy 2 | 1 . . 1 . . . Corrupt 1 | . . . 1 . . . Melee Attacks . | . . . . . . . Impact . | . . . . . . . Slashing . | . . . . . . . Piercing . | . . . . . . . Sneak Attacks . | . . . . . . . Combat Hostiles . | . . . . . . . Follow-up Attacks . | . . . . . . . Damage Inflicted 2591 | 36 850 436 846 393 . 30 Guns 1994 | 36 586 148 801 393 . 30 Cannons . | . . . . . . . Explosions 589 | . 264 286 39 . . . Melee . | . . . . . . . Ramming 8 | . . 2 6 . . . Kinetic 1007 | 23 502 25 265 178 . 14 Thermal 453 | 13 12 . 213 215 . . Explosive 550 | . 264 286 . . . . Electromagnetic 573 | . 72 123 362 . . 16 Impact . | . . . . . . . Slashing . | . . . . . . . Piercing . | . . . . . . . Highest Corruption 6 | . . . . 1 . 6 Average Corruption 3 | . . . . 1 . 5 Corruption Purged . | . . . . . . . Corruption Blocked . | . . . . . . . Effects 4 | . . . . . . 4 Matter Fused 2 | . . . . . . 2 Energy Discharges 1 | . . . . . . 1 Data Loss (minor) 1 | . . . . . . 1 Overload Shots . | . . . . . . . Overflow Damage 8 | . . . 8 . . . Projectiles . | . . . . . . . Explosions 8 | . . . 8 . . . Melee . | . . . . . . . Knockbacks . | . . . . . . . Impact . | . . . . . . . Kinetic . | . . . . . . . Secondary . | . . . . . . . Self-Inflicted Damage 56 | . . 56 . . . . Shots 4 | . . 4 . . . . Rammed 1 | . . . 1 . . . Targets Rammed 3 | . . 1 2 . . . Kicked 2 | . . 1 1 . . . Crushed . | . . . . . . . Highest Temperature 458 | 9 120 235 458 132 . . Average Temperature 114 | 6 43 97 147 59 . . Received Heat Transfer 975 | . 267 300 360 30 . 18 Effects 3 | . . 1 2 . . . Energy Bleed 1 | . . 1 . . . . Matter Decay 1 | . . . 1 . . . Short Circuit 1 | . . . 1 . . . Siege Activations . | . . . . . . . Robots Corrupted . | . . . . . . . Combat Hostiles . | . . . . . . . Parts Fried 1 | . . . 1 . . . Impact Corruptions . | . . . . . . . Robots Melted . | . . . . . . . Combat Hostiles . | . . . . . . . Parts Melted . | . . . . . . . Heat Transferred 927 | 37 37 . 457 396 . . Parts Sabotaged . | . . . . . . . Parts Stolen . | . . . . . . . Parts Stripped . | . . . . . . . Power Chain Reactions 1 | . . . 1 . . . Alert | -11 -10 -9 -8 -7 -6 -6 ------- Run | Yrd Mat Mat Mat Fac Fac DSF Peak Influence 337 | 10 227 215 337 268 32 130 Initial 128 | . 6 32 90 128 32 22 Average 132 | 2 85 96 218 180 32 36 Maximum Alert Level 1 | . 1 1 1 1 . . Low Security (%) 72 | 100 86 83 45 63 100 100 Level 1 27 | . 13 16 54 36 . . Level 2 . | . . . . . . . Level 3 . | . . . . . . . Level 4 . | . . . . . . . Level 5 . | . . . . . . . High Security . | . . . . . . . Max Security . | . . . . . . . Squads Dispatched 14 | . 3 3 4 2 . 2 Investigation 8 | . 3 2 2 1 . . Extermination 1 | . . . . 1 . . Reinforcement 5 | . . 1 2 . . 2 Assault . | . . . . . . . Garrison . | . . . . . . . Intercept . | . . . . . . . Searches Triggered . | . . . . . . . Construction Impeded . | . . . . . . . Haulers Reinforced . | . . . . . . . Active Scanning Responses . | . . . . . . . Cargo Convoy Interrupts . | . . . . . . . Stealth | -11 -10 -9 -8 -7 -6 -6 --------- Run | Yrd Mat Mat Mat Fac Fac DSF Distress Signals 2 | . . . 1 1 . . Communications Jammed . | . . . . . . . Distress Signals . | . . . . . . . Times Spotted 67 | . 11 9 26 5 . 16 Peak Tracking Total 8 | . 3 8 8 2 . 7 Tactical Retreats 7 | . . 3 1 . . 3 Traps | -11 -10 -9 -8 -7 -6 -6 ------- Run | Yrd Mat Mat Mat Fac Fac DSF Traps Triggered 8 | . 1 1 1 1 . 4 Indirectly . | . . . . . . . Trap Hack Attempts . | . . . . . . . Triggered . | . . . . . . . Disarmed . | . . . . . . . Reprogrammed . | . . . . . . . Reused 7 | . . . . . . 7 Traps Extracted . | . . . . . . . Installed 7 | . . . . . . 7 Triggered 7 | . . . . . . 7 Most Traps Carried 3 | . . . . . . 3 Machines | -11 -10 -9 -8 -7 -6 -6 ---------- Run | Yrd Mat Mat Mat Fac Fac DSF Machines Disabled 4 | . 1 . 3 . . . Max in Single Turn 1 | . 1 . 1 . . . Machines Repaired . | . . . . . . . Machines Dismantled . | . . . . . . . Machines Sabotaged . | . . . . . . . Overloaded Fab Kills . | . . . . . . . Hacking | -11 -10 -9 -8 -7 -6 -6 --------- Run | Yrd Mat Mat Mat Fac Fac DSF Machines Accessed 15 | . 5 2 4 3 1 . Terminals 14 | . 5 2 3 3 1 . Fabricators . | . . . . . . . Repair Stations . | . . . . . . . Recycling Units . | . . . . . . . Scanalyzers 1 | . . . 1 . . . Garrison Access . | . . . . . . . Total Hacks 42 | . 11 8 10 12 1 . Successful 9 | . 2 2 2 2 1 . Failed 33 | . 9 6 8 10 . . Catastrophic 15 | . 5 3 4 3 . . Database Lockouts . | . . . . . . . Manual 38 | . 11 8 7 12 . . Terminals 39 | . 11 8 7 12 1 . Fabricators . | . . . . . . . Repair Stations . | . . . . . . . Recycling Units . | . . . . . . . Scanalyzers 3 | . . . 3 . . . Garrison Access . | . . . . . . . Terminal Hacks 7 | . 2 2 . 2 1 . Part Schematic 1 | . . . . 1 . . Open DSF 1 | . . . . . 1 . Level Access Points 1 | . 1 . . . . . Terminal Index 3 | . 1 1 . 1 . . Recall Investigation 1 | . . 1 . . . . Fabricator Hacks . | . . . . . . . Repair Station Hacks . | . . . . . . . Recycling Unit Hacks . | . . . . . . . Scanalyzer 2 | . . . 2 . . . Insert Component 1 | . . . 1 . . . Analyze 1 | . . . 1 . . . Garrison Access Hacks . | . . . . . . . Unauthorized Hacks . | . . . . . . . Terminals . | . . . . . . . Fabricators . | . . . . . . . Repair Stations . | . . . . . . . Recycling Units . | . . . . . . . Scanalyzers . | . . . . . . . Garrison Access . | . . . . . . . Data Cores Recovered . | . . . . . . . Used . | . . . . . . . Hacking Detections 13 | . 5 2 3 3 . . Full Trace Events 7 | . 2 2 2 1 . . Feedback Events . | . . . . . . . Feedback Blocked . | . . . . . . . Robot Schematics Acquired . | . . . . . . . Robots Built . | . . . . . . . Authchips . | . . . . . . . Time . | . . . . . . . Total Robot Build Rating . | . . . . . . . Part Schematics Acquired 2 | . . . 1 1 . . Parts Built . | . . . . . . . Authchips . | . . . . . . . Time . | . . . . . . . Total Part Build Rating . | . . . . . . . Parts Repaired . | . . . . . . . Time . | . . . . . . . Parts Recycled . | . . . . . . . Recycled Matter . | . . . . . . . Retrieved Matter . | . . . . . . . Retrieved Components . | . . . . . . . Parts Scanalyzed 1 | . . . 1 . . . Part Schematics Acquired 1 | . . . 1 . . . Parts Damaged . | . . . . . . . Bothacking | -11 -10 -9 -8 -7 -6 -6 ------------ Run | Yrd Mat Mat Mat Fac Fac DSF Used RIF Installer . | . . . . . . . Robots Hacked . | . . . . . . . Non-combat . | . . . . . . . Combat . | . . . . . . . Robot Hacks Applied . | . . . . . . . Relay Couplers Released . | . . . . . . . Fabnet Peak Effective % . | . . . . . . . Robots Rewired . | . . . . . . . Allies Hacked . | . . . . . . . Hacks Repelled . | . . . . . . . Allies | -11 -10 -9 -8 -7 -6 -6 -------- Run | Yrd Mat Mat Mat Fac Fac DSF Total Allies . | . . . . . . . Largest Group . | . . . . . . . Highest-Rated Group . | . . . . . . . Highest-Rated Ally . | . . . . . . . Total Orders . | . . . . . . . Ally Attacks . | . . . . . . . Total Damage . | . . . . . . . Kills . | . . . . . . . Allies Corrupted . | . . . . . . . Allies Melted . | . . . . . . . Intel | -11 -10 -9 -8 -7 -6 -6 ------- Run | Yrd Mat Mat Mat Fac Fac DSF Robot Analysis Total . | . . . . . . . Derelict Logs Recovered . | . . . . . . . Drone Launches . | . . . . . . . Drone Recoveries . | . . . . . . . Exploration | -11 -10 -9 -8 -7 -6 -6 ------------- Run | Yrd Mat Mat Mat Fac Fac DSF Turns Passed 2513 | 63 781 302 706 404 6 251 Spaces Moved 1426 | 54 314 184 317 368 10 179 Core 206 | 7 . 43 49 . . 107 Treads 1 | . . . . 1 . . Legs 376 | . 48 141 91 96 . . Wheels 436 | 47 266 . 25 98 . . Hover 255 | . . . . 173 10 72 Flight 152 | . . . 152 . . . Fastest Speed 50 | 50 90 50 114 56 56 50 Average Speed 101 | 84 94 112 138 85 56 79 Slowest Speed 300 | 90 120 200 300 240 56 250 Overloaded Moves . | . . . . . . . Propulsion Burnouts . | . . . . . . . Robots Hopped . | . . . . . . . Cave-ins Triggered . | . . . . . . . Exploration Rate (%) 31 | 3 47 22 30 8 . 81 Regions Visited 6 Branch Regions . Pre-discovered Areas . | . . . . . . . Known Exits Taken 2 | . 1 . . . 1 . Unknown Exits Taken 4 | 1 . 1 1 1 . . Scrap Searched . | . . . . . . . Spaces Dug . | . . . . . . . Terrain Destroyed 63 | . 11 47 5 . . . Melee . | . . . . . . . Projectile . | . . . . . . . AOE 63 | . 11 47 5 . . . Terrain Rammed . | . . . . . . . Walls Destroyed . | . . . . . . . Machines Disabled . | . . . . . . . Actions | -11 -10 -9 -8 -7 -6 -6 --------- Run | Yrd Mat Mat Mat Fac Fac DSF Total 2279 | 63 741 258 486 433 9 289 Wait 518 | . 361 42 60 22 . 33 Move 1420 | 53 313 183 316 367 9 179 Hop . | . . . . . . . Pick Up 21 | 1 3 1 4 3 . 9 Fast Attach 50 | 7 10 4 18 10 . 1 Attach 10 | . . 4 2 3 . 1 Detach 8 | . 4 1 2 1 . . Swap 19 | . 5 2 7 5 . . Drop 48 | . 9 4 15 12 . 8 Fire 125 | 2 36 16 60 10 . 1 Melee . | . . . . . . . Ram 1 | . . . 1 . . . Kick 2 | . . 1 1 . . . Crush . | . . . . . . . Escape Stasis 46 | . . . . . . 46 Rewire 3 | . . . . . . 3 Trap 8 | . . . . . . 8 Miscellaneous . | . . . . . . . Route ------- -11/Scrapyard -10/Materials (discovered 3 exits: *Mat x3) -9/Materials -8/Materials -7/Factory (discovered 2 exits: *Fac / [*Sto]) -6/Factory -6/DSF History --------- Turn | Location | Event 5 | -11/Scrapyard | Discovered new exit (range 16) 64 | -11/Scrapyard | Entered Materials 307 | -10/Materials | Build established: Mutant 372 | -10/Materials | Identified exit to Materials 738 | -10/Materials | Core integrity fell below 50% 845 | -10/Materials | Entered another Materials area 845 | -9/Materials | Evolved 2 slots: Utility x2 1055 | -9/Materials | Core integrity fell below 50% 1088 | -9/Materials | Lost 6 parts (1p2n1u2w) 1141 | -9/Materials | Discovered new exit (range 3) 1147 | -9/Materials | Entered another Materials area 1147 | -8/Materials | Evolved 2 slots: Power x1, Propulsion x1 1636 | -8/Materials | Build established: Scavenger-Mutant 1772 | -8/Materials | Lost 5 parts (1p2n2w) 1800 | -8/Materials | Discovered new exit (range 15) 1853 | -8/Materials | Entered Factory 1853 | -7/Factory | Evolved 2 slots: Weapon x2 2238 | -7/Factory | Discovered new exit (range 4) 2240 | -7/Factory | Discovered new exit (range 8) 2257 | -7/Factory | Entered another Factory area 2257 | -6/Factory | Evolved 2 slots: Power x1, Propulsion x1 2263 | -6/Factory | Identified exit to DSF 2263 | -6/Factory | Entered DSF 2319 | -6/DSF | Additional patrols routed to DSF 2362 | -6/DSF | Lost 3 parts (1n2u) 2449 | -6/DSF | Core integrity fell below 50% 2466 | -6/DSF | Lost 4 parts (1p1u2w) 2478 | -6/DSF | Core integrity fell below 20% 2514 | -6/DSF | Destroyed by X-72 Disruptor with Improved Arc Projector Last Messages --------------- 02502_ Field strength at 55. 02502_ Triggered Stasis Trap. 02502_ A bubble of rippling energy engulfs the area. 02502_ Field strength at 94. 02503_ Field strength at 88. 02503_ Field strength at 40. 02504_ Field strength at 82. 02504_ Field strength at 25. 02505_ Field strength at 76. 02505_ Field strength at 10. 02506_ Field strength at 70. 02506_ Stasis field depleted. 02507_ Field strength at 64. 02508_ Field strength at 55. 02509_ Field strength at 49. 02510_ Field strength at 43. 02511_ Field strength at 31. 02512_ Field strength at 21. 02513_ Field strength at 15. 02514_ Field strength at 9. Map ----- +----------------------------------------------------+ | | | ????????????????????????????????????????? | | ????????????????????????????????????????? | | ????????????????????????????????????????? | | ??????????????????????????????????????##? | | ???????????????????????##?????????????""? | | ???????????????????????# ????????????#"#? | | ????????????????????#### ####???????##"## | | ????????????????????# ]]] #########"""" | | ????????????????????# ]]] &# ##"""" | | ????????????????????# =!! | | ????????????????????# !%[ ^ % | | ????????????????????### " &# | | ????????????????????### # # #&&# | | ????????????????????# !"####### | | ????????????????????# !!#??????#& | | ????????????????????# %!!#??????# & | | ????????????????????### ###??????## # | | ????????????????????#]] !!#??????# & | | ????????????????????#]] !!#??????# & | | ????????????????????#]] !!#??????# & | | ????????????########### ############ # | | ??????# ????#***#!!!### ###!! # ## / | | ??????# ##***#!!!##A % ##!% ; ## / | | ??????#!! ^ x g ! | | ??????#!! @ x Ax % ! | | ??????#!! ^ % ! | | ??????# ## #|||##A ## #=%=## ! | | ??????# ???# #|||### A###!!!# * ##/]! | | ????????????#########?# #?##########%=# | | ?????????????????????!! ==???#???#&=!=& | | ????????????????????#!! ==#??????#&&*!& | | ????????????????????#!! ==#??????#& [ | | ????????????????????### ###??????### # | | ????????????????????# ????????#& | | ????????????????????# ???#???#&& & | | ????????????????????? ########## # | | ????????????????????### ###&&&#&&### # | | ?????????????#!!#" ### ###&&&#&&## " | | ???????????? %" ^^ " | | ???????????? " ^ " | | ????????????????#!!!# !!#&& # ##"""" | | ????????????????????# !!#########"""" | | ????????????????????#########???????##"## | | ???????????????????????????#?????#???#"#? | | ?????????????????????????????????#???#""? | | ?????????????????????????????????????###? | | ??????????????????????????????????????#?? | | ????????????????????????????????????????? | | ????????????????????????????????????????? | +----------------------------------------------------+ Best States ------------- Heat Dissipation 56 Energy Generation 26 Energy Capacity 340 Matter Stores 300 Matter Capacity 450 Sight Range 22 Terrain Scan Range 16 Terrain Scan Density 10 EM Shielding 4 Evasion (%) 55 Targeting Accuracy 8 Recoil Reduction 4 Item Schematics ----------------- Hvy. Particle Gun | -8/Materials | Scanalyzed Hacking Suite | -7/Factory | Hacked Robot Schematics ------------------ None Fabricated ------------ Nothing Alien Tech Used ----------------- None Achievements -------------- None Challenges ------------ None Game ------ Seed ParticleMobileTendrils Manual? 0 Play Time 00:37:51 Cumulative 74.6 hours Start 2024.04.07 @ 19:37:11 End 2024.04.07 @ 20:17:41 Sessions 1 Manual Loads 0 Difficulty Rogue Special Mode None Game No. 29 Rogue 4 Adventurer 24 Explorer 1 Win Type - Total 0 Types 0/0/0/0/0/0/0/0/0 Lore% 34 Gallery% 47 Achievement% 37 Wizard Run 0 Options --------- Layout 0 ASCII 0 Keyboard 0 Movement Numpad Keybinds 0 Fullscreen 1 Font 18/SmallcapsGlow Map View 76x50 Zoom Use 0% Tactical HUD 1 Map Filters NONE Filters NONE Steam 1 RUN: d284d994-4936-41f2-99a9-70dc096a1e9a